bitfinex/quotes_SOLUSD_20250206
["timestamp","ask_amount","ask_price","bid_price","bid_amount"]
[1738861579447,7.658e-05,191.15,191.14,34.35347312]
[1738861579661,7.658e-05,191.15,191.12,34.35347312]
[1738861579842,30.00007658,191.15,191.11,34.35347312]
[1738861580042,7.658e-05,191.15,191.14,34.35347312]
[1738861581470,7.658e-05,191.15,191.12,34.35347312]
[1738861581782,0.12549,191.13,191.1,3.0]
[1738861581948,0.12549,191.13,191.1,23.0]
[1738861582279,0.09881888,191.16,191.14,20.0]
[1738861582474,0.09881888,191.16,191.15,20.0]
[1738861582639,0.0958199,191.2,191.17,34.35347312]
[1738861583169,0.0958199,191.2,191.11,18.3139]
[1738861583170,30.1028168,191.19,191.15,34.35347312]
[1738861583373,30.2283068,191.19,191.16,20.0]
[1738861583586,0.12549,191.15,191.1,3.0]
[1738861584090,0.12549,191.13,191.1,3.0]
[1738861584255,35.33457517,191.16,191.1,3.0]
[1738861584256,30.0,191.16,191.11,34.35347312]
[1738861584459,0.12549,191.13,191.1,37.35347312]
[1738861584768,30.0,191.12,191.1,3.0]
[1738861584968,30.0,191.12,191.1,37.35347312]
[1738861585385,30.0,191.12,191.1,3.0]
[1738861587485,30.0,191.14,191.1,3.0]
[1738861587673,6.78238,191.15,191.1,3.0]
[1738861587870,30.0,191.14,191.1,3.0]
[1738861588270,30.0,191.14,191.11,34.35347312]
[1738861588485,0.1283815,191.18,191.13,34.35347312]
[1738861588787,0.1283815,191.18,191.17,34.35347312]
[1738861589686,0.1283815,191.18,191.16,34.35347312]
[1738861589893,30.1283815,191.18,191.15,34.35347312]
[1738861590191,30.1283815,191.18,191.16,34.35347312]
[1738861590387,30.0,191.15,191.1,3.0]
[1738861590562,113.49526477,191.11,191.1,0.0001]
[1738861590766,30.37647,191.04,191.03,0.063]
[1738861590967,30.12549,191.04,191.03,0.063]
[1738861591363,30.37647,191.04,191.03,0.063]
[1738861591881,30.37647,191.04,190.89,1.0]
[1738861591882,0.25098,190.96,190.92,34.35347312]
[1738861592082,0.25098,190.96,190.88,6.1581]
[1738861592083,0.25098,190.96,190.91,34.35347312]
[1738861592466,0.25098,190.96,190.92,34.35347312]
[1738861592869,0.47638183,190.96,190.9,34.35347312]
[1738861593182,34.82985495,190.96,190.88,6.1581]
[1738861593586,41.03345495,190.96,190.88,6.1581]
[1738861594378,40.03345495,190.96,190.88,6.1581]
[1738861594581,5.15638183,190.96,190.9,34.35347312]
[1738861594812,39.50985495,190.96,190.89,34.35347312]
[1738861595269,5.15638183,190.96,190.9,34.35347312]
[1738861595474,39.50985495,190.96,190.88,40.51157312]
[1738861596091,40.50985495,190.96,190.88,6.1581]
[1738861596395,40.50985495,190.96,190.88,40.51157312]
[1738861596778,40.50985495,190.96,190.88,6.1581]
[1738861597392,54.92170348,190.96,190.86,1.5662]
[1738861597591,30.0,190.85,190.83,0.063]
[1738861597983,30.0,190.85,190.83,34.41647312]
[1738861598290,30.12549,190.88,190.84,34.35347312]
[1738861598489,30.0,190.9,190.84,20.0]
[1738861598793,0.5237,190.93,190.84,20.0]
[1738861598794,30.0,190.89,190.87,34.35347312]
[1738861599305,0.12549,190.9,190.83,0.063]
[1738861599306,30.0,190.85,190.83,0.063]
[1738861600573,0.37647,190.86,190.83,34.41647312]
[1738861600776,0.37647,190.86,190.84,34.35347312]
[1738861601184,0.98263316,190.89,190.85,34.35347312]
[1738861601493,30.0,190.91,190.88,34.35347312]
[1738861601674,0.37647,190.9,190.88,34.35347312]
[1738861602277,30.5237,190.93,190.89,34.35347312]
[1738861602485,31.50610113,190.95,190.9,34.35347312]
[1738861602777,30.0,190.95,190.91,34.35347312]
[1738861602998,0.12549,190.94,190.91,34.35347312]
[1738861603202,30.25098,190.92,190.89,34.35347312]
[1738861603486,30.25098,190.92,190.85,5.2396]
[1738861603487,30.0,190.89,190.85,34.35347312]
[1738861603681,30.0,190.89,190.84,34.35347312]
[1738861604091,30.0,190.87,190.84,34.35347312]
[1738861604289,30.37647,190.78,190.77,0.063]
[1738861604504,65.71319322,190.78,190.77,0.063]
[1738861604816,30.0,190.72,190.69,0.063]
[1738861605216,0.12549,190.71,190.69,0.063]
[1738861605384,30.12549,190.7,190.69,0.063]
[1738861606387,30.37647,190.7,190.69,0.063]
[1738861606723,65.7134347,190.7,190.69,0.063]
[1738861607219,31.35996158,190.7,190.69,0.063]
[1738861607389,30.37647,190.7,190.69,0.063]
[1738861608686,30.12549,190.7,190.69,0.063]
[1738861608888,4.68,190.75,190.69,34.41647312]
[1738861609203,4.68,190.75,190.73,34.35347312]
[1738861609919,0.12549,190.74,190.71,34.35347312]
[1738861610118,30.12549,190.72,190.69,34.41647312]
[1738861610292,30.0,190.74,190.69,34.41647312]
[1738861610709,0.12549,190.73,190.69,34.41647312]
[1738861610909,0.12549,190.73,190.71,34.35347312]
[1738861611118,4.93098,190.75,190.72,34.35347312]
[1738861611119,4.68,190.75,190.72,34.35347312]
[1738861611317,30.5241,190.78,190.69,5.307]
[1738861611318,30.0,190.78,190.74,34.35347312]
[1738861611525,30.0,190.82,190.77,34.35347312]
[1738861611833,0.12549,190.81,190.78,34.35347312]
[1738861612123,0.12549,190.81,190.77,34.35347312]
[1738861612124,30.0,190.8,190.77,34.35347312]
[1738861612422,30.0,190.8,190.78,34.35347312]
[1738861612728,0.37647,190.81,190.78,34.35347312]
[1738861612890,0.10992314,190.79,190.78,34.35347312]
[1738861614028,0.10992314,190.79,190.78,39.59507312]
[1738861614333,0.10992314,190.79,190.78,87.36039477]
[1738861614494,0.10992314,190.79,190.78,39.59507312]
[1738861614693,0.10992314,190.79,190.78,34.35347312]
[1738861615125,0.10992314,190.79,190.78,53.00692165]
[1738861615619,2.314e-05,190.79,190.78,53.00692165]
[1738861616613,2.314e-05,190.79,190.78,39.59507312]
[1738861617015,2.314e-05,190.79,190.78,87.36039477]
[1738861617396,2.314e-05,190.79,190.78,88.36039477]
[1738861617798,2.314e-05,190.79,190.78,87.36039477]
[1738861618030,2.314e-05,190.79,190.78,88.36039477]
[1738861618313,0.01268793,190.85,190.83,13.41184853]
[1738861618502,0.01268793,190.85,190.84,34.35347312]
[1738861620312,0.01268793,190.85,190.84,47.76532165]
[1738861620513,0.01268793,190.85,190.84,48.76532165]
[1738861620719,0.11029853,190.87,190.86,1.0]
[1738861621029,0.11029853,190.87,190.86,49.09814353]
[1738861621619,30.03,190.99,190.94,20.0]
[1738861621620,0.03,190.99,190.94,20.0]
[1738861621818,0.03,190.99,190.91,13.41184853]
[1738861621819,0.03,190.99,190.98,34.35347312]
[1738861624243,0.03,190.99,190.98,68.70694624]
[1738861624444,0.03,190.99,190.98,82.11879477]
[1738861624816,0.03,190.99,190.98,34.35347312]
[1738861626542,30.03,190.99,190.95,34.35347312]
[1738861626758,30.03,190.99,190.94,34.35347312]
[1738861627050,30.0,190.97,190.93,34.35347312]
[1738861627223,0.12549,190.98,190.95,34.35347312]
[1738861627551,30.0,190.97,190.95,34.35347312]
[1738861627728,30.0,190.97,190.94,54.35347312]
[1738861627916,30.0,190.97,190.94,34.35347312]
[1738861628322,30.0,190.95,190.92,34.35347312]
[1738861628524,30.0,190.93,190.89,34.35347312]
[1738861628752,0.12549,190.95,190.92,34.35347312]
[1738861629053,30.0,190.97,190.94,34.35347312]
[1738861629254,0.12549,190.98,190.94,34.35347312]
[1738861629424,30.0,190.97,190.94,34.35347312]
[1738861629755,0.12549,190.98,190.95,34.35347312]
[1738861630619,0.03,190.99,190.97,34.35347312]
[1738861630842,0.03,190.99,190.92,13.41184853]
[1738861630843,0.03,190.99,190.98,34.35347312]
[1738861631645,0.03,190.99,190.97,34.35347312]
[1738861632022,0.03,190.99,190.9,34.35347312]
[1738861632023,0.03,190.99,190.98,34.35347312]
[1738861632224,0.03,190.99,190.97,34.35347312]
[1738861632723,30.0,190.96,190.93,34.35347312]
[1738861632948,0.12549,190.95,190.91,34.35347312]
[1738861633223,0.12549,190.95,190.9,34.35347312]
[1738861633453,0.12549,190.95,190.91,34.35347312]
[1738861633625,0.12549,190.95,190.9,34.35347312]
[1738861633952,0.12549,190.95,190.92,34.35347312]
[1738861634145,0.12549,190.93,190.9,34.35347312]
[1738861634347,0.12549,190.93,190.89,34.35347312]
[1738861634542,0.12549,190.93,190.91,34.35347312]
[1738861634948,30.0,190.97,190.92,34.35347312]
[1738861635254,30.0,190.97,190.94,34.35347312]
[1738861635456,0.12549,190.96,190.92,34.35347312]
[1738861635754,0.12549,190.96,190.91,5.2378]
[1738861635755,0.12549,190.93,190.9,34.35347312]
[1738861636255,30.0,190.94,190.9,34.35347312]
[1738861636443,30.0,190.94,190.91,34.35347312]
[1738861636856,0.12549,190.95,190.92,34.35347312]
[1738861637628,30.0,190.96,190.93,34.35347312]
[1738861637828,0.09590963,190.98,190.95,34.35347312]
[1738861638049,0.09590963,190.98,190.97,34.35347312]
[1738861638456,0.09590963,190.98,190.97,47.76532165]
[1738861639535,0.09590963,190.98,190.97,53.00172165]
[1738861640166,0.09590963,190.98,190.97,39.58987312]
[1738861640360,0.09590963,190.98,190.97,34.35347312]
[1738861641952,0.09590963,190.98,190.96,34.35347312]
[1738861642145,0.09590963,190.98,190.94,5.2372]
[1738861642146,30.0,190.97,190.94,34.35347312]
[1738861642369,30.0,190.97,190.93,34.35347312]
[1738861642549,30.0,190.93,190.89,34.35347312]
[1738861642732,0.12549,190.92,190.88,34.35347312]
[1738861642939,0.12549,190.94,190.89,34.35347312]
[1738861643138,0.12549,190.94,190.9,34.35347312]
[1738861643347,0.12549,190.94,190.89,34.35347312]
[1738861643748,0.12549,190.94,190.9,34.35347312]
[1738861644167,0.12549,190.94,190.89,34.35347312]
[1738861644373,0.12549,190.94,190.9,34.35347312]
[1738861644582,30.12549,190.91,190.89,34.35347312]
[1738861644874,0.12549,190.93,190.89,34.35347312]
[1738861646445,30.0,190.94,190.89,34.35347312]
[1738861646666,30.0,190.94,190.9,34.35347312]
[1738861646842,0.12549,190.93,190.9,34.35347312]
[1738861647389,0.12549,190.93,190.89,34.35347312]
[1738861648242,30.0,190.97,190.92,34.35347312]
[1738861648459,30.0,190.97,190.94,34.35347312]
[1738861648643,30.0,190.97,190.93,21.0894415]
[1738861648843,0.22139963,190.98,190.91,20.0]
[1738861649074,0.09590963,190.98,190.91,20.0]
[1738861649374,0.09590963,190.98,190.95,20.0]
[1738861649936,0.09590963,190.98,190.88,13.0969]
[1738861650137,0.09590963,190.98,190.95,21.0894415]
[1738861650755,30.0,190.97,190.94,34.26312561]
[1738861650944,0.22139963,190.98,190.94,34.26312561]
[1738861651158,0.22139963,190.98,190.95,34.26312561]
[1738861651477,0.22139963,190.98,190.9,34.26312561]
[1738861651478,30.0,190.95,190.9,34.26312561]
[1738861651781,0.12549,190.92,190.89,34.26312561]
[1738861652157,0.12549,190.92,190.9,34.26312561]
[1738861652972,0.11043428,190.91,190.9,34.26312561]
[1738861653161,0.11043428,190.91,190.89,34.26312561]
[1738861653362,0.12549,190.9,190.87,34.26312561]
[1738861653991,0.12549,190.9,190.88,34.32612561]
[1738861654279,30.11043428,190.91,190.89,34.26312561]
[1738861654280,0.11043428,190.91,190.89,34.26312561]
[1738861654477,30.12549,190.89,190.88,0.063]
[1738861654782,65.03790561,190.89,190.88,0.063]
[1738861654991,30.77478,190.89,190.88,0.063]
[1738861657581,0.11043428,190.91,190.88,34.32612561]
[1738861657751,0.11043428,190.91,190.9,34.26312561]
[1738861659778,0.11043428,190.91,190.89,34.26312561]
[1738861659981,0.11043428,190.91,190.9,34.26312561]
[1738861660866,30.23592428,190.91,190.88,34.32612561]
[1738861661084,30.75972428,190.91,190.88,0.063]
[1738861661267,30.12549,190.89,190.88,0.063]
[1738861661470,64.51410561,190.89,190.88,0.063]
[1738861661787,64.63959561,190.89,190.88,0.063]
[1738861662588,65.62228712,190.89,190.88,0.063]
[1738861662972,70.82608712,190.89,190.88,0.063]
[1738861663686,30.25098,190.87,190.86,0.063]
[1738861663890,65.49687938,190.87,190.86,0.063]
[1738861664086,65.62236938,190.87,190.86,0.063]
[1738861664981,30.0,190.8,190.75,34.26312561]
[1738861665196,30.0,190.8,190.74,34.26312561]
[1738861665366,0.12549,190.81,190.76,34.26312561]
[1738861666086,30.0,190.82,190.78,34.26312561]
[1738861666290,30.0,190.82,190.79,34.26312561]
[1738861666968,30.0,190.82,190.77,34.26312561]
[1738861667169,30.0,190.8,190.75,34.26312561]
[1738861668590,30.0,190.8,190.76,34.26312561]
[1738861669998,0.12549,190.81,190.77,34.26312561]
[1738861670185,0.12549,190.81,190.78,34.26312561]
[1738861670775,0.12549,190.81,190.78,21.1203529]
[1738861671698,0.12549,190.81,190.77,21.1203529]
[1738861671992,30.0,190.8,190.74,26.3630529]
[1738861672195,21.2458429,190.79,190.73,26.3632529]
[1738861672387,0.12549,190.79,190.73,26.3632529]
[1738861672780,30.0,190.78,190.72,21.1203529]
[1738861672981,0.10725333,190.74,190.72,26.3635529]
[1738861673171,0.10725333,190.74,190.71,26.3638529]
[1738861673501,0.10725333,190.74,190.73,21.1203529]
[1738861674372,0.10725333,190.74,190.73,26.3633529]
[1738861674578,0.10725333,190.74,190.73,21.1203529]
[1738861674793,0.10725333,190.74,190.7,21.1203529]
[1738861675192,30.0,190.73,190.69,21.1833529]
[1738861675391,30.0,190.73,190.69,0.063]
[1738861675895,51.1203529,190.71,190.69,0.063]
[1738861676077,30.0,190.71,190.69,0.063]
[1738861676284,0.12549,190.7,190.69,0.063]
[1738861676594,30.12549,190.7,190.69,0.063]
[1738861678489,30.0,190.73,190.69,21.1833529]
[1738861678674,30.0,190.71,190.69,0.063]
[1738861678878,0.12549,190.7,190.69,0.063]
[1738861679597,0.25098,190.7,190.69,0.063]
[1738861680302,30.5243,190.73,190.69,0.063]
[1738861680604,0.10725333,190.74,190.72,21.1203529]
[1738861680783,0.10725333,190.74,190.73,21.1203529]
[1738861681381,0.10725333,190.74,190.72,21.1203529]
[1738861681596,0.10725333,190.74,190.73,21.1203529]
[1738861681782,30.0,190.71,190.69,0.063]
[1738861681982,30.0,190.73,190.69,0.063]
[1738861682978,0.23274333,190.74,190.71,21.1203529]
[1738861683496,0.10725333,190.74,190.72,21.1203529]
[1738861683688,0.10725333,190.74,190.73,21.1203529]
[1738861684392,0.10725333,190.74,190.73,39.77520143]
[1738861684575,5.333e-05,190.74,190.73,39.77520143]
[1738861684774,0.097633,190.75,190.73,42.68687231]
[1738861684993,3.3e-05,190.75,190.74,34.53220143]
[1738861685202,3.3e-05,190.75,190.74,21.1203529]
[1738861685903,3.3e-05,190.75,190.73,21.1203529]
[1738861686092,3.3e-05,190.75,190.74,21.1203529]
[1738861686482,3.3e-05,190.75,190.73,26.3630529]
[1738861686685,3.3e-05,190.75,190.74,20.0]
[1738861686887,3.3e-05,190.75,190.71,21.1203529]
[1738861687088,30.000033,190.75,190.7,21.1203529]
[1738861688714,30.000033,190.75,190.71,21.1203529]
[1738861688901,30.000033,190.75,190.69,5.3069]
[1738861688902,3.3e-05,190.75,190.73,21.1203529]
[1738861689106,3.3e-05,190.75,190.72,21.1203529]
[1738861689487,3.3e-05,190.75,190.71,21.1203529]
[1738861690607,3.3e-05,190.75,190.74,21.1203529]
[1738861691124,3.3e-05,190.75,190.71,21.1203529]
[1738861691294,30.0,190.74,190.7,21.1833529]
[1738861692617,0.125523,190.75,190.7,21.1833529]
[1738861692618,30.0,190.71,190.7,0.063]
[1738861692996,0.111766,190.71,190.7,42.3037058]
[1738861693182,0.111766,190.71,190.7,55.71555433]
[1738861693513,0.10954923,190.73,190.71,13.41184853]
[1738861693514,5.558e-05,190.73,190.71,13.41184853]
[1738861693697,0.09495102,190.75,190.74,20.0]
[1738861693698,0.09491802,190.75,190.74,20.0]
[1738861693899,0.00534573,190.76,190.75,33.41184853]
[1738861694110,0.00534573,190.76,190.75,54.03220143]
[1738861694295,0.09929265,190.77,190.75,55.03220143]
[1738861694501,9.874e-05,190.8,190.79,20.0]
[1738861694709,30.0,190.91,190.79,26.2413]
[1738861694710,8.15795576,190.89,190.79,26.2413]
[1738861695397,38.15795576,190.89,190.85,21.1203529]
[1738861695604,0.12549,190.88,190.85,21.1203529]
[1738861695807,0.12549,190.88,190.85,20.0]
[1738861696118,30.0,190.87,190.82,21.1203529]
[1738861696499,0.15549,190.86,190.82,21.1203529]
[1738861696690,0.15549,190.86,190.84,21.1203529]
[1738861696887,0.03,190.86,190.85,21.1203529]
[1738861698124,0.03,190.86,190.84,20.0]
[1738861698292,0.03,190.86,190.82,21.1203529]
[1738861698293,0.15549,190.86,190.82,21.1203529]
[1738861699008,30.0,190.83,190.79,21.1203529]
[1738861699206,30.0,190.85,190.8,21.1203529]
[1738861699397,0.03,190.86,190.82,21.1203529]
[1738861699714,0.15549,190.86,190.82,21.1203529]
[1738861700710,0.03,190.86,190.85,21.1203529]
[1738861701295,0.03,190.86,190.83,41.1203529]
[1738861701497,30.0,190.85,190.81,21.1203529]
[1738861701714,30.0,190.85,190.8,21.1203529]
[1738861701715,0.12549,190.84,190.8,21.1203529]
[1738861701890,0.12549,190.84,190.81,21.1203529]
[1738861702086,0.03,190.86,190.83,21.1203529]
[1738861702311,2.51886938,190.93,190.83,21.1203529]
[1738861702312,62.36,190.95,190.88,20.0]
[1738861702512,62.36,190.95,190.93,21.1203529]
[1738861702698,62.36,190.95,190.88,20.0]
[1738861702906,30.0,190.94,190.89,20.0]
[1738861703933,30.0,190.94,190.92,21.1203529]
[1738861704420,30.0,190.94,190.93,21.1203529]
[1738861704617,30.0,190.94,190.92,21.1203529]
[1738861706435,30.0,190.94,190.93,21.1203529]
[1738861706598,0.03,190.98,190.93,21.1203529]
[1738861706803,0.03,190.98,190.97,21.1203529]
[1738861708218,0.12549,190.96,190.91,21.1203529]
[1738861708521,30.0,190.93,190.89,21.1203529]
[1738861708697,30.0,190.93,190.9,20.0]
[1738861708893,30.0,190.93,190.89,21.1203529]
[1738861709102,0.12549,190.94,190.9,21.1203529]
[1738861709315,30.0,190.97,190.93,21.1203529]
[1738861709521,30.03,190.99,190.93,21.1203529]
[1738861709727,30.03,190.99,190.94,21.1203529]
[1738861709728,30.0,190.97,190.94,21.1203529]
[1738861709898,0.15549,190.98,190.94,21.1203529]
[1738861710216,0.12549,190.96,190.92,21.1203529]
[1738861711195,0.03,190.98,190.95,21.1203529]
[1738861711396,0.03,190.98,190.97,21.1203529]
[1738861713017,0.12590949,190.98,190.97,26.3567529]
[1738861713821,0.12590949,190.98,190.97,39.76860143]
[1738861714203,0.12590949,190.98,190.97,26.3567529]
[1738861714611,0.12590949,190.98,190.97,21.1203529]
[1738861715024,0.12590949,190.98,190.97,26.3567529]
[1738861717233,0.12590949,190.98,190.97,21.1203529]
[1738861717408,0.09720835,191.02,191.0,33.41184853]
[1738861717723,0.14297501,191.06,191.04,13.41184853]
[1738861717910,0.14297501,191.06,191.05,21.1203529]
[1738861719024,0.14297501,191.06,191.02,21.1203529]
[1738861719234,0.14297501,191.06,191.05,21.1203529]
[1738861719898,0.14297501,191.06,191.03,21.1203529]
[1738861720105,0.14297501,191.06,191.02,41.1203529]
[1738861720512,0.12549,191.02,190.97,21.1203529]
[1738861720720,0.25098,191.05,190.97,21.1203529]
[1738861720721,0.14297501,191.06,191.04,20.0]
[1738861720920,30.03,191.14,191.08,20.0]
[1738861721124,0.03,191.14,191.12,25.2323]
[1738861722110,0.03,191.14,191.13,21.1203529]
[1738861722443,0.03,191.14,191.13,34.53220143]
[1738861723026,0.03,191.14,191.13,35.31675167]
[1738861723320,0.0001,191.14,191.13,41.01518143]
[1738861723521,0.0001,191.14,191.13,42.01518143]
[1738861723830,30.0,191.24,191.17,41.1203529]
[1738861724129,30.0,191.26,191.17,54.53220143]
[1738861724306,30.12549,191.26,191.17,54.53220143]
[1738861724503,8.15795576,191.27,191.21,1.0]
[1738861724704,8.15795576,191.27,191.26,22.1203529]
[1738861724909,8.15795576,191.27,191.26,35.65769143]
[1738861725121,8.15795576,191.27,191.26,34.53220143]
[1738861725325,30.0,191.36,191.29,20.0]
[1738861725515,30.0,191.36,191.32,21.1203529]
[1738861725905,36.2322,191.39,191.33,21.1203529]
[1738861726116,57.8750529,191.39,191.32,21.1203529]
[1738861726606,30.0,191.36,191.31,21.1203529]
[1738861727118,0.03,191.34,191.31,21.1203529]
[1738861727432,0.03,191.34,191.3,41.1203529]
[1738861727630,0.03,191.34,191.32,21.1203529]
[1738861728721,30.03,191.34,191.28,21.1203529]
[1738861729538,21.1203529,191.3,191.24,21.1203529]
[1738861729719,0.12549,191.26,191.2,21.1203529]
[1738861729923,21.2458429,191.26,191.2,21.1203529]
[1738861730311,21.2458429,191.26,191.23,20.0]
[1738861730312,0.12549,191.26,191.23,20.0]
[1738861730612,30.0,191.25,191.2,21.1203529]
[1738861730824,30.0,191.25,191.21,21.1203529]
[1738861731011,0.12549,191.24,191.19,21.1203529]
[1738861731207,51.1203529,191.27,191.21,21.1203529]
[1738861731405,51.1203529,191.27,191.22,21.1203529]
[1738861731406,30.0,191.27,191.22,21.1203529]
[1738861731620,30.5228,191.27,191.22,21.1203529]
[1738861731821,0.12549,191.26,191.22,21.1203529]
[1738861732322,30.0,191.27,191.23,21.1203529]
[1738861732505,51.6430529,191.29,191.23,21.1203529]
[1738861732705,51.6430529,191.29,191.2,18.64184853]
[1738861732706,30.0,191.26,191.22,21.1203529]
[1738861732906,0.10918085,191.24,191.2,21.1203529]
[1738861733129,0.10918085,191.24,191.23,21.1203529]
[1738861734136,0.10918085,191.24,191.22,21.1203529]
[1738861734351,0.10918085,191.24,191.21,20.0]
[1738861734631,51.1203529,191.23,191.17,21.1203529]
[1738861735335,30.0,191.23,191.19,21.1203529]
[1738861735917,30.0,191.23,191.18,21.1203529]
[1738861736535,30.5229,191.23,191.17,21.1203529]
[1738861736739,30.5229,191.23,191.18,21.1203529]
[1738861737422,0.10918085,191.24,191.22,21.1203529]
[1738861737630,0.10918085,191.24,191.23,21.1203529]
[1738861738517,0.10918085,191.24,191.21,20.0]
[1738861738814,0.10918085,191.24,191.2,21.1203529]
[1738861739027,0.10918085,191.24,191.21,21.1203529]
[1738861739245,0.10918085,191.24,191.19,41.1203529]
[1738861739427,0.63208085,191.24,191.2,21.1203529]
[1738861739617,0.10918085,191.24,191.2,21.1203529]
[1738861739812,0.12549,191.23,191.19,41.1203529]
[1738861740121,30.12549,191.23,191.19,41.1203529]
[1738861740317,30.12549,191.23,191.18,21.1203529]
[1738861740519,30.12549,191.23,191.17,21.1203529]
[1738861741149,30.12549,191.23,191.19,21.1203529]
[1738861741316,0.12549,191.2,191.15,21.1203529]
[1738861741639,21.6433529,191.19,191.13,26.3763529]
[1738861741846,30.0,191.17,191.11,21.1203529]
[1738861742027,0.12549,191.16,191.1,21.1203529]
[1738861742339,0.12549,191.14,191.1,21.1203529]
[1738861742540,0.12549,191.14,191.09,21.1203529]
[1738861743143,30.0,191.12,191.07,27.3669529]
[1738861743744,30.5232,191.12,191.07,27.3669529]
[1738861743943,30.0,191.1,191.05,21.1203529]
[1738861744448,30.0,191.1,191.04,21.1203529]
[1738861744652,21.4968229,191.09,191.02,21.1203529]
[1738861744824,0.12549,191.05,191.01,21.1203529]
[1738861745026,0.12549,191.05,191.0,21.1203529]
[1738861745433,30.0,191.04,191.01,21.1203529]
[1738861745637,30.0,191.07,191.03,21.1203529]
[1738861745959,0.12549,191.04,191.0,21.1203529]
[1738861746458,30.0,191.03,190.98,21.1833529]
[1738861746760,30.0,191.03,191.01,21.1203529]
[1738861747325,0.12549,191.06,191.02,21.1203529]
[1738861747326,30.0,191.06,191.02,21.1203529]
[1738861747726,30.0,191.04,191.0,21.1203529]
[1738861748759,30.0,191.04,190.98,0.063]
[1738861748760,30.0,191.02,190.98,0.063]
[1738861748959,0.12549,191.01,190.98,0.063]
[1738861749768,0.77448,191.01,190.98,0.063]
[1738861749968,30.0,190.99,190.98,0.063]
[1738861750267,30.5235,191.01,190.98,0.063]
[1738861750765,30.12549,190.99,190.98,0.063]
[1738861751137,30.0,190.99,190.98,0.063]
[1738861751338,30.12549,190.99,190.98,0.063]
[1738861751834,30.64899,190.99,190.98,0.063]
[1738861752982,30.75114073,190.99,190.98,0.063]
[1738861753139,51.99698363,190.99,190.98,0.063]
[1738861753760,52.12247363,190.99,190.98,0.063]
[1738861755744,31.00212073,190.99,190.98,0.063]
[1738861756144,30.75114073,190.99,190.98,0.063]
[1738861756467,30.75114073,190.99,190.98,21.1833529]
[1738861756468,0.10215073,190.99,190.98,21.1833529]
[1738861756967,30.22764073,190.99,190.98,0.063]
[1738861757742,0.10215073,190.99,190.98,21.1833529]
[1738861757939,0.10215073,190.99,190.98,0.063]
[1738861758168,0.10215073,190.99,190.98,21.1833529]
[1738861758558,0.11405849,191.0,190.98,55.71555433]
[1738861758868,0.09640636,191.02,191.01,33.41184853]
[1738861759954,0.09640636,191.02,191.01,46.3556529]
[1738861760344,0.09640636,191.02,191.01,59.76750143]
[1738861761264,0.09640636,191.02,191.01,60.55256367]
[1738861761768,0.09640636,191.02,191.01,59.76750143]
[1738861761966,0.09640636,191.02,191.01,46.3556529]
[1738861762148,0.09640636,191.02,191.01,41.1203529]
[1738861762477,0.09640636,191.02,191.01,21.1203529]
[1738861763861,0.09640636,191.02,191.0,21.1203529]
[1738861764069,0.09640636,191.02,190.98,21.1833529]
[1738861764249,0.09640636,191.02,190.99,21.1203529]
[1738861764565,0.09640636,191.02,191.01,21.1203529]
[1738861765969,0.09640636,191.02,191.01,40.55264742]
[1738861766469,6.376e-05,191.05,191.04,33.41184853]
[1738861766775,36.0343,191.16,191.05,13.41184853]
[1738861766962,30.0,191.13,191.06,21.1203529]
[1738861767271,0.12549,191.14,191.06,21.1203529]
[1738861767658,30.0,191.13,191.06,21.1203529]
[1738861767855,30.5232,191.11,191.06,21.1203529]
[1738861768060,30.12549,191.11,191.06,21.1203529]
[1738861768257,0.12549,191.11,191.06,21.1203529]
[1738861768452,30.0,191.1,191.06,21.1203529]
[1738861769674,30.5232,191.1,191.06,21.1203529]
[1738861769868,30.11344097,191.08,191.04,21.1203529]
[1738861770171,0.75628125,191.07,191.04,21.1203529]
[1738861770375,0.75628125,191.07,191.03,21.1203529]
[1738861770682,30.0,191.03,190.98,21.1833529]
[1738861770852,0.12549,191.02,190.98,0.063]
[1738861771171,30.0,190.99,190.98,0.063]
[1738861771548,30.77448,190.99,190.98,0.063]
[1738861772448,52.0203229,190.99,190.98,0.063]
[1738861772686,53.0023475,190.99,190.98,0.063]